[Event "Live Chess"]
[Site "Chess.com"]
[Date "2023.05.21"]
[Round "-"]
[White "WelshTiger"]
[Black "YrrriKharkiv"]
[Result "1-0"]
[WhiteElo "2326"]
[BlackElo "2062"]
[TimeControl "300"]
[EndTime "4:02:37 PDT"]
[Termination "WelshTiger won by resignation"]

1. e4 {[%clk 0:04:36.6]} 1... c5 {[%clk 0:04:57.4]} 2. Nf3 {[%clk 0:04:35.3]}
2... e6 {[%clk 0:04:55]} 3. c3 {[%clk 0:04:30.9]} 3... Nf6 {[%clk 0:04:52]} 4.
e5 {[%clk 0:04:30]} 4... Nd5 {[%clk 0:04:51]} 5. d4 {[%clk 0:04:29.9]} 5... d6
{[%clk 0:04:49.1]} 6. Bc4 {[%clk 0:04:26.7]} 6... Nb6 {[%clk 0:04:47.5]} 7. Bb3
{[%clk 0:04:26]} 7... dxe5 {[%clk 0:04:45]} 8. dxe5 {[%clk 0:04:25.2]} 8... Qd2+
{[%clk 0:04:43]} 9. Bxd2 {[%clk 0:04:23.8]} 9... Be7 {[%clk 0:04:42.2]} 10. Qe2
{[%clk 0:04:22.8]} 10... Nc6 {[%clk 0:04:35.5]} 11. O-O {[%clk 0:04:21.3]} 11...
Bd7 {[%clk 0:04:33.6]} 12. Na3 {[%clk 0:04:16.6]} 12... O-O {[%clk 0:04:31]} 13.
Nc4 {[%clk 0:04:15.7]} 13... Nd5 {[%clk 0:04:27.5]} 14. Nd6 {[%clk 0:04:12.3]}
14... Rab8 {[%clk 0:04:23.5]} 15. Bxd5 {[%clk 0:04:09.6]} 15... exd5 {[%clk
0:04:21.8]} 16. Bg5 {[%clk 0:04:08.9]} 16... Bxd6 {[%clk 0:04:15.3]} 17. exd6
{[%clk 0:04:07.2]} 17... f6 {[%clk 0:04:15.1]} 18. Bf4 {[%clk 0:04:06.2]} 18...
Rbe8 {[%clk 0:04:13.1]} 19. Qd2 {[%clk 0:04:05.4]} 1-0

[Event "Live Chess"]
[Site "Chess.com"]
[Date "2023.05.21"]
[Round "-"]
[White "LiamClery2020"]
[Black "DoYouLikeCurry"]
[Result "1-0"]
[WhiteElo "2002"]
[BlackElo "1400"]
[TimeControl "300"]
[EndTime "4:02:38 PDT"]
[Termination "LiamClery2020 won by resignation"]

1. e4 {[%clk 0:04:59.3]} 1... c6 {[%clk 0:04:58.2]} 2. d4 {[%clk 0:04:55.2]}
2... d5 {[%clk 0:04:56.3]} 3. Nc3 {[%clk 0:04:53.8]} 3... dxe4 {[%clk
0:04:54.7]} 4. Nxe4 {[%clk 0:04:53.7]} 4... Bf5 {[%clk 0:04:53.9]} 5. Ng3 {[%clk
0:04:53]} 5... Bg6 {[%clk 0:04:53.4]} 6. h4 {[%clk 0:04:51.9]} 6... h6 {[%clk
0:04:52.6]} 7. h5 {[%clk 0:04:50.3]} 7... Bh7 {[%clk 0:04:51.6]} 8. Nf3 {[%clk
0:04:49.9]} 8... Nd7 {[%clk 0:04:50.6]} 9. c3 {[%clk 0:04:45.7]} 9... e6 {[%clk
0:04:44.9]} 10. Bd3 {[%clk 0:04:44.1]} 10... Bxd3 {[%clk 0:04:42.6]} 11. Qxd3
{[%clk 0:04:44]} 11... Qc7 {[%clk 0:04:37.8]} 12. Ne4 {[%clk 0:04:41.8]} 12...
Ngf6 {[%clk 0:04:33.6]} 13. Be3 {[%clk 0:04:38.3]} 13... Be7 {[%clk 0:04:31.7]}
14. Ng3 {[%clk 0:04:32.1]} 14... O-O {[%clk 0:04:21.1]} 15. O-O-O {[%clk
0:04:30.9]} 15... a5 {[%clk 0:04:18.7]} 16. Rhe1 {[%clk 0:04:27]} 16... b5
{[%clk 0:04:16.4]} 17. Ne4 {[%clk 0:04:25.9]} 17... Rfb8 {[%clk 0:04:10.8]} 18.
Nxf6+ {[%clk 0:04:24.5]} 18... Nxf6 {[%clk 0:04:09.9]} 19. Qd2 {[%clk
0:04:19.6]} 19... b4 {[%clk 0:04:06.7]} 20. c4 {[%clk 0:04:18.5]} 20... a4
{[%clk 0:04:02.2]} 21. Bxh6 {[%clk 0:04:12.9]} 21... gxh6 {[%clk 0:03:51.5]} 22.
Qxh6 {[%clk 0:04:12.8]} 22... Bf8 {[%clk 0:03:42.4]} 23. Qg5+ {[%clk 0:04:11.4]}
23... Bg7 {[%clk 0:03:41]} 24. h6 {[%clk 0:04:10.5]} 24... Ne8 {[%clk
0:03:21.7]} 25. hxg7 {[%clk 0:04:05.8]} 25... Nxg7 {[%clk 0:03:21.6]} 26. Rh1
{[%clk 0:04:00.9]} 26... f6 {[%clk 0:02:37.1]} 27. Qxf6 {[%clk 0:03:55.6]} 27...
Rf8 {[%clk 0:02:33.7]} 28. Qg6 {[%clk 0:03:37.6]} 28... Qf4+ {[%clk 0:02:21.3]}
29. Rd2 {[%clk 0:03:36.4]} 29... Rf6 {[%clk 0:02:12.9]} 30. Qh7+ {[%clk
0:03:33.7]} 30... Kf7 {[%clk 0:02:12.5]} 31. Ne5+ {[%clk 0:03:32.2]} 31... Ke7
{[%clk 0:02:09.1]} 32. Qxg7+ {[%clk 0:03:31.4]} 32... Rf7 {[%clk 0:02:06.7]} 33.
Ng6+ {[%clk 0:03:25.2]} 33... Kd7 {[%clk 0:01:59.6]} 34. Ne5+ {[%clk 0:03:22.2]}
34... Ke7 {[%clk 0:01:56.3]} 35. Nxf7 {[%clk 0:03:18.4]} 35... Qxf7 {[%clk
0:01:54.7]} 36. Qg5+ {[%clk 0:03:16.2]} 36... Kd7 {[%clk 0:01:51.2]} 37. d5
{[%clk 0:03:14.6]} 1-0

[Event "Live Chess"]
[Site "Chess.com"]
[Date "2023.05.21"]
[Round "-"]
[White "JanMur7"]
[Black "RoaringKnights"]
[Result "1-0"]
[WhiteElo "1978"]
[BlackElo "1081"]
[TimeControl "300"]
[EndTime "4:02:52 PDT"]
[Termination "JanMur7 won by checkmate"]

1. e4 {[%clk 0:04:58.7]} 1... e5 {[%clk 0:04:57.7]} 2. Nf3 {[%clk 0:04:57.9]}
2... Nc6 {[%clk 0:04:56.7]} 3. Nc3 {[%clk 0:04:56.9]} 3... d6 {[%clk 0:04:56]}
4. Bc4 {[%clk 0:04:55.7]} 4... Bg4 {[%clk 0:04:53.1]} 5. h3 {[%clk 0:04:55.1]}
5... Bh5 {[%clk 0:04:51.1]} 6. Nxe5 {[%clk 0:04:54.3]} 6... dxe5 {[%clk
0:04:46.2]} 7. Qxh5 {[%clk 0:04:52.8]} 7... Qf6 {[%clk 0:04:37.3]} 8. Nd5 {[%clk
0:04:47.5]} 8... Qd6 {[%clk 0:04:24.3]} 9. O-O {[%clk 0:04:42.2]} 9... Nf6
{[%clk 0:04:19.4]} 10. Nxf6+ {[%clk 0:04:39.3]} 10... Qxf6 {[%clk 0:04:18.1]}
11. d3 {[%clk 0:04:38.6]} 11... Bc5 {[%clk 0:04:12.6]} 12. Bg5 {[%clk
0:04:34.1]} 12... Qg6 {[%clk 0:04:09.7]} 13. Qxg6 {[%clk 0:04:32.7]} 13... hxg6
{[%clk 0:04:09.2]} 14. Be3 {[%clk 0:04:32]} 14... O-O-O {[%clk 0:04:08.5]} 15.
Bxc5 {[%clk 0:04:30.6]} 15... g5 {[%clk 0:04:06.8]} 16. Bxf7 {[%clk 0:04:28.6]}
16... Rh7 {[%clk 0:04:06.3]} 17. Be6+ {[%clk 0:04:26.6]} 17... Kb8 {[%clk
0:04:05]} 18. Bf5 {[%clk 0:04:26.5]} 18... Rh6 {[%clk 0:04:03.5]} 19. Be3 {[%clk
0:04:22.9]} 19... Rh5 {[%clk 0:03:59.6]} 20. Bg4 {[%clk 0:04:20.2]} 20... Rh7
{[%clk 0:03:56.4]} 21. Bxg5 {[%clk 0:04:13.2]} 21... Rdh8 {[%clk 0:03:54.8]} 22.
f4 {[%clk 0:04:08.2]} 22... exf4 {[%clk 0:03:53.4]} 23. Rxf4 {[%clk 0:04:08.1]}
23... Nd4 {[%clk 0:03:50]} 24. c3 {[%clk 0:04:05.9]} 24... Nc2 {[%clk
0:03:49.1]} 25. Raf1 {[%clk 0:04:05.2]} 25... Ne3 {[%clk 0:03:47.6]} 26. Rf8+
{[%clk 0:04:04]} 26... Rxf8 {[%clk 0:03:42.2]} 27. Rxf8# {[%clk 0:04:03.9]} 1-0

[Event "Live Chess"]
[Site "Chess.com"]
[Date "2023.05.21"]
[Round "-"]
[White "Dhaydon19"]
[Black "NAZRIZ1977"]
[Result "1-0"]
[WhiteElo "2697"]
[BlackElo "1963"]
[TimeControl "300"]
[EndTime "4:03:03 PDT"]
[Termination "Dhaydon19 won by resignation"]

1. d4 {[%clk 0:04:58.6]} 1... Nf6 {[%clk 0:04:58.3]} 2. Nf3 {[%clk 0:04:58.2]}
2... g6 {[%clk 0:04:56.8]} 3. g3 {[%clk 0:04:57.7]} 3... Bg7 {[%clk 0:04:55.9]}
4. Bg2 {[%clk 0:04:57.3]} 4... O-O {[%clk 0:04:55.1]} 5. O-O {[%clk 0:04:56.9]}
5... c5 {[%clk 0:04:52.9]} 6. c3 {[%clk 0:04:56.8]} 6... d5 {[%clk 0:04:51.2]}
7. dxc5 {[%clk 0:04:55.4]} 7... Na6 {[%clk 0:04:50]} 8. Be3 {[%clk 0:04:54.3]}
8... Ng4 {[%clk 0:04:48.8]} 9. Bf4 {[%clk 0:04:45.3]} 9... e5 {[%clk 0:04:44.9]}
10. Bg5 {[%clk 0:04:43.8]} 10... f6 {[%clk 0:04:44.1]} 11. Bc1 {[%clk 0:04:42]}
11... Nxc5 {[%clk 0:04:41.5]} 12. Nbd2 {[%clk 0:04:37.9]} 12... Be6 {[%clk
0:04:39.3]} 13. Nb3 {[%clk 0:04:36.2]} 13... Qc7 {[%clk 0:04:31.9]} 14. h3
{[%clk 0:04:34]} 14... Nh6 {[%clk 0:04:30.3]} 15. Nfd2 {[%clk 0:04:31.7]} 15...
Nf7 {[%clk 0:04:26.1]} 16. Nxc5 {[%clk 0:04:30.3]} 16... Qxc5 {[%clk 0:04:25]}
17. Nb3 {[%clk 0:04:29.4]} 17... Qd6 {[%clk 0:04:22.5]} 18. Be3 {[%clk
0:04:26.4]} 18... Rfd8 {[%clk 0:04:19.5]} 19. Bc5 {[%clk 0:04:23.5]} 19... Qd7
{[%clk 0:04:17.2]} 20. Ba3 {[%clk 0:04:21.7]} 20... b6 {[%clk 0:04:15.9]} 21.
Kh2 {[%clk 0:04:20.1]} 21... Rac8 {[%clk 0:04:13.8]} 22. Qd2 {[%clk 0:04:18]}
22... Bh6 {[%clk 0:04:10.8]} 23. e3 {[%clk 0:04:15.8]} 23... Bg7 {[%clk
0:04:01.6]} 24. Rad1 {[%clk 0:04:13.3]} 24... a5 {[%clk 0:03:48.7]} 25. Qe2
{[%clk 0:04:08.7]} 25... a4 {[%clk 0:03:44.9]} 26. Nd2 {[%clk 0:04:06.5]} 26...
Bf8 {[%clk 0:03:39.2]} 27. Bxf8 {[%clk 0:04:03.7]} 27... Kxf8 {[%clk 0:03:39.1]}
28. a3 {[%clk 0:04:02.9]} 28... Kg7 {[%clk 0:03:31.1]} 29. f4 {[%clk 0:04:01.7]}
29... Qd6 {[%clk 0:03:05.9]} 30. fxe5 {[%clk 0:03:54.3]} 30... Qxe5 {[%clk
0:03:02.9]} 31. Nf3 {[%clk 0:03:52.7]} 31... Qh5 {[%clk 0:02:49]} 32. Qf2 {[%clk
0:03:47.1]} 32... Ng5 {[%clk 0:02:42.4]} 33. Nxg5 {[%clk 0:03:44.3]} 33... Qxg5
{[%clk 0:02:42.3]} 34. Rd4 {[%clk 0:03:43.3]} 34... Rc4 {[%clk 0:02:34.2]} 35.
Rfd1 {[%clk 0:03:39.6]} 35... Rxd4 {[%clk 0:02:25.8]} 36. Rxd4 {[%clk
0:03:37.7]} 36... Qe5 {[%clk 0:02:25.7]} 37. Rxa4 {[%clk 0:03:34.7]} 37... h5
{[%clk 0:02:19.7]} 38. Ra7+ {[%clk 0:03:32.5]} 38... Rd7 {[%clk 0:02:15.2]} 39.
Rxd7+ {[%clk 0:03:30.5]} 39... Bxd7 {[%clk 0:02:15.1]} 40. Qf4 {[%clk
0:03:29.3]} 40... Qxf4 {[%clk 0:02:11.1]} 41. exf4 {[%clk 0:03:26.1]} 41... Be6
{[%clk 0:02:11]} 42. Kg1 {[%clk 0:03:25.1]} 42... Kf7 {[%clk 0:02:10.4]} 43. Kf2
{[%clk 0:03:24.2]} 43... Ke7 {[%clk 0:02:10.3]} 44. Ke3 {[%clk 0:03:23.5]} 44...
Kd6 {[%clk 0:02:09.9]} 45. Kd4 {[%clk 0:03:23]} 45... g5 {[%clk 0:02:09.1]} 46.
fxg5 {[%clk 0:03:21.7]} 46... fxg5 {[%clk 0:02:09]} 47. h4 {[%clk 0:03:21.2]}
47... gxh4 {[%clk 0:02:07]} 48. gxh4 {[%clk 0:03:20.3]} 48... Bf7 {[%clk
0:02:06.2]} 49. Bf3 {[%clk 0:03:19.4]} 49... b5 {[%clk 0:02:04]} 50. b3 {[%clk
0:03:16.8]} 1-0

[Event "Live Chess"]
[Site "Chess.com"]
[Date "2023.05.21"]
[Round "-"]
[White "domrobson"]
[Black "Twickenham2014"]
[Result "1-0"]
[WhiteElo "1712"]
[BlackElo "2288"]
[TimeControl "300"]
[EndTime "4:03:07 PDT"]
[Termination "domrobson won by resignation"]

1. d4 {[%clk 0:04:58.6]} 1... Nf6 {[%clk 0:04:58.3]} 2. c4 {[%clk 0:04:58]} 2...
c5 {[%clk 0:04:57.8]} 3. d5 {[%clk 0:04:56.9]} 3... e6 {[%clk 0:04:57.4]} 4. Nc3
{[%clk 0:04:55.1]} 4... exd5 {[%clk 0:04:57.3]} 5. cxd5 {[%clk 0:04:53.9]} 5...
d6 {[%clk 0:04:56.3]} 6. e4 {[%clk 0:04:53.4]} 6... g6 {[%clk 0:04:55]} 7. Nf3
{[%clk 0:04:52]} 7... Bg7 {[%clk 0:04:54.3]} 8. Be2 {[%clk 0:04:51.6]} 8... O-O
{[%clk 0:04:52.1]} 9. O-O {[%clk 0:04:51.3]} 9... Bg4 {[%clk 0:04:44.3]} 10. h3
{[%clk 0:04:44.8]} 10... Bxf3 {[%clk 0:04:42.4]} 11. Bxf3 {[%clk 0:04:44.7]}
11... Nbd7 {[%clk 0:04:42]} 12. Bf4 {[%clk 0:04:43.5]} 12... Re8 {[%clk
0:04:38.8]} 13. Re1 {[%clk 0:04:41.6]} 13... Ne5 {[%clk 0:04:37.9]} 14. Bxe5
{[%clk 0:04:38.3]} 14... Rxe5 {[%clk 0:04:37]} 15. a4 {[%clk 0:04:34.6]} 15...
a6 {[%clk 0:04:35.5]} 16. Qb3 {[%clk 0:04:32.7]} 16... Qc7 {[%clk 0:04:31.8]}
17. a5 {[%clk 0:04:30.4]} 17... Rae8 {[%clk 0:04:30.1]} 18. Qb6 {[%clk
0:04:27.7]} 18... Qxb6 {[%clk 0:04:28.4]} 19. axb6 {[%clk 0:04:26.4]} 19... Nd7
{[%clk 0:04:28.3]} 20. Na4 {[%clk 0:04:22.4]} 20... f5 {[%clk 0:04:27.4]} 21.
Rac1 {[%clk 0:04:14.3]} 21... fxe4 {[%clk 0:04:26]} 22. Bg4 {[%clk 0:04:13]}
22... Nf6 {[%clk 0:04:24]} 23. Be6+ {[%clk 0:04:09.5]} 23... Kf8 {[%clk
0:04:21.9]} 24. Nc3 {[%clk 0:03:54.7]} 24... Bh6 {[%clk 0:04:16]} 25. Rc2 {[%clk
0:03:52]} 25... e3 {[%clk 0:04:14.5]} 26. Rce2 {[%clk 0:03:46.1]} 26... exf2+
{[%clk 0:04:10.4]} 27. Kxf2 {[%clk 0:03:44.4]} 27... Rxe2+ {[%clk 0:04:09.9]}
28. Rxe2 {[%clk 0:03:42.8]} 28... Nh5 {[%clk 0:04:03]} 29. Kf3 {[%clk
0:03:36.9]} 29... Ng7 {[%clk 0:03:57.1]} 30. g4 {[%clk 0:03:33.5]} 30... Nxe6
{[%clk 0:03:55]} 31. dxe6 {[%clk 0:03:31.2]} 31... Bg7 {[%clk 0:03:53.6]} 32.
Nd5 {[%clk 0:03:28.7]} 32... Be5 {[%clk 0:03:49.5]} 33. e7+ {[%clk 0:03:24.7]}
33... Kf7 {[%clk 0:03:48.6]} 34. Ke4 {[%clk 0:03:22.9]} 34... Ke6 {[%clk
0:03:42.2]} 35. Nc7+ {[%clk 0:03:19.3]} 35... Kxe7 {[%clk 0:03:41]} 36. Nxe8
{[%clk 0:03:17.9]} 36... Kxe8 {[%clk 0:03:40.6]} 37. Kd5 {[%clk 0:03:17.2]}
37... Kd7 {[%clk 0:03:33.4]} 38. Rf2 {[%clk 0:03:14.5]} 38... Ke7 {[%clk
0:03:31.9]} 39. Re2 {[%clk 0:03:13.1]} 39... Kf6 {[%clk 0:03:26.9]} 40. Rf2+
{[%clk 0:03:10.5]} 40... Ke7 {[%clk 0:03:18.3]} 41. Re2 {[%clk 0:03:09.3]} 41...
a5 {[%clk 0:03:16.7]} 42. b3 {[%clk 0:03:07.7]} 42... h6 {[%clk 0:03:13.2]} 43.
h4 {[%clk 0:03:06.4]} 43... g5 {[%clk 0:03:12.5]} 44. hxg5 {[%clk 0:03:03.7]}
44... hxg5 {[%clk 0:03:12.4]} 45. Re3 {[%clk 0:02:56.1]} 45... Kd7 {[%clk
0:03:09.9]} 46. Rf3 {[%clk 0:02:54.8]} 46... Bf4 {[%clk 0:03:09.2]} 47. Rh3
{[%clk 0:02:49.5]} 47... Ke7 {[%clk 0:02:56]} 48. Rh7+ {[%clk 0:02:47.6]} 48...
Kd8 {[%clk 0:02:51.7]} 49. Rxb7 {[%clk 0:02:47.5]} 49... Kc8 {[%clk 0:02:51.1]}
50. Ra7 {[%clk 0:02:43.9]} 50... Kb8 {[%clk 0:02:50.4]} 51. Kc6 {[%clk
0:02:35.8]} 51... Be5 {[%clk 0:02:38.3]} 52. Re7 {[%clk 0:02:28.3]} 1-0

[Event "Live Chess"]
[Site "Chess.com"]
[Date "2023.05.21"]
[Round "-"]
[White "Swetha_Queen"]
[Black "Doge_Dandolo"]
[Result "0-1"]
[WhiteElo "352"]
[BlackElo "1872"]
[TimeControl "300"]
[EndTime "4:03:12 PDT"]
[Termination "Doge_Dandolo won by checkmate"]

1. e4 {[%clk 0:04:54.1]} 1... c6 {[%clk 0:04:58.3]} 2. Nf3 {[%clk 0:04:49.5]}
2... d5 {[%clk 0:04:56.2]} 3. exd5 {[%clk 0:04:46.9]} 3... cxd5 {[%clk
0:04:54.8]} 4. Ne5 {[%clk 0:04:44.7]} 4... Nf6 {[%clk 0:04:50.1]} 5. Bb5+ {[%clk
0:04:39.8]} 5... Nbd7 {[%clk 0:04:47.5]} 6. Bxd7+ {[%clk 0:04:33.5]} 6... Bxd7
{[%clk 0:04:46.3]} 7. Nxd7 {[%clk 0:04:31.4]} 7... Qxd7 {[%clk 0:04:45.4]} 8.
O-O {[%clk 0:04:25.2]} 8... e5 {[%clk 0:04:43.7]} 9. d3 {[%clk 0:04:19.6]} 9...
Bd6 {[%clk 0:04:42.2]} 10. Be3 {[%clk 0:04:17.2]} 10... O-O {[%clk 0:04:40.5]}
11. d4 {[%clk 0:04:13.4]} 11... e4 {[%clk 0:04:38.6]} 12. Nc3 {[%clk 0:04:09.1]}
12... Ng4 {[%clk 0:04:33.5]} 13. Nxd5 {[%clk 0:03:53.3]} 13... Bxh2+ {[%clk
0:04:31.5]} 14. Kh1 {[%clk 0:03:46.9]} 14... Nxe3 {[%clk 0:04:30]} 15. Nxe3
{[%clk 0:03:40.3]} 15... Bc7 {[%clk 0:04:27.9]} 16. f3 {[%clk 0:03:34.4]} 16...
exf3 {[%clk 0:04:25.7]} 17. Rxf3 {[%clk 0:03:30.5]} 17... Rae8 {[%clk
0:04:23.9]} 18. Nf5 {[%clk 0:03:26.4]} 18... Re6 {[%clk 0:04:14.8]} 19. Qd3
{[%clk 0:02:59.7]} 19... Rfe8 {[%clk 0:04:06.4]} 20. Rf4 {[%clk 0:02:51.3]}
20... Bxf4 {[%clk 0:03:54.6]} 21. Rf1 {[%clk 0:02:43.8]} 21... Bb8 {[%clk
0:03:48.4]} 22. Rf3 {[%clk 0:02:37.4]} 22... Qc7 {[%clk 0:03:42.8]} 23. Ne3
{[%clk 0:02:20.4]} 23... Qh2# {[%clk 0:03:39]} 0-1

[Event "Live Chess"]
[Site "Chess.com"]
[Date "2023.05.21"]
[Round "-"]
[White "LL220284LL"]
[Black "FlorinHristea"]
[Result "1-0"]
[WhiteElo "2317"]
[BlackElo "1837"]
[TimeControl "300"]
[EndTime "4:03:13 PDT"]
[Termination "LL220284LL won by checkmate"]

1. b3 {[%clk 0:04:58.4]} 1... d5 {[%clk 0:04:58.6]} 2. Bb2 {[%clk 0:04:56.8]}
2... c5 {[%clk 0:04:58.5]} 3. Nf3 {[%clk 0:04:55.3]} 3... Bf5 {[%clk 0:04:57.6]}
4. e3 {[%clk 0:04:53.3]} 4... e6 {[%clk 0:04:57.1]} 5. d4 {[%clk 0:04:51.1]}
5... Nc6 {[%clk 0:04:56.1]} 6. Be2 {[%clk 0:04:47.9]} 6... Nf6 {[%clk
0:04:54.6]} 7. O-O {[%clk 0:04:45.9]} 7... Rc8 {[%clk 0:04:53]} 8. c3 {[%clk
0:04:43.9]} 8... Bd6 {[%clk 0:04:49.5]} 9. a3 {[%clk 0:04:42.6]} 9... Bb8 {[%clk
0:04:49]} 10. dxc5 {[%clk 0:04:40.5]} 10... Bg4 {[%clk 0:04:45.4]} 11. b4 {[%clk
0:04:39.1]} 11... Qc7 {[%clk 0:04:44.4]} 12. Nbd2 {[%clk 0:04:37]} 12... h5
{[%clk 0:04:41.4]} 13. Rc1 {[%clk 0:04:30]} 13... Ne5 {[%clk 0:04:34.7]} 14. g3
{[%clk 0:04:11.8]} 14... Rd8 {[%clk 0:04:30.8]} 15. c4 {[%clk 0:04:10.7]} 15...
Nxf3+ {[%clk 0:04:29.1]} 16. Bxf3 {[%clk 0:04:03.2]} 16... Bxf3 {[%clk
0:04:25.4]} 17. Qxf3 {[%clk 0:03:59.7]} 17... h4 {[%clk 0:04:22.6]} 18. cxd5
{[%clk 0:03:57.1]} 18... Rxd5 {[%clk 0:04:15.2]} 19. Nc4 {[%clk 0:03:55.2]}
19... hxg3 {[%clk 0:04:07.4]} 20. Nd6+ {[%clk 0:03:51]} 20... Ke7 {[%clk
0:04:01.7]} 21. fxg3 {[%clk 0:03:44.6]} 21... Rhh5 {[%clk 0:03:49.6]} 22. Bxf6+
{[%clk 0:03:41.5]} 22... gxf6 {[%clk 0:03:48.2]} 23. Qxf6+ {[%clk 0:03:41.4]}
23... Kd7 {[%clk 0:03:44.6]} 24. Qxf7+ {[%clk 0:03:38.8]} 24... Kc6 {[%clk
0:03:44]} 25. Qe8+ {[%clk 0:03:36.2]} 25... Qd7 {[%clk 0:03:41.7]} 26. b5+
{[%clk 0:03:35]} 26... Kc7 {[%clk 0:03:40.8]} 27. b6+ {[%clk 0:03:32.4]} 27...
Kc6 {[%clk 0:03:39.7]} 28. Qxb8 {[%clk 0:03:28.2]} 28... axb6 {[%clk 0:03:37.5]}
29. cxb6+ {[%clk 0:03:26.1]} 29... Kxb6 {[%clk 0:03:37.4]} 30. Nc8+ {[%clk
0:03:22.3]} 30... Ka6 {[%clk 0:03:33.3]} 31. Qa7+ {[%clk 0:03:20.3]} 31... Kb5
{[%clk 0:03:32]} 32. Qb6+ {[%clk 0:03:19.2]} 32... Ka4 {[%clk 0:03:31]} 33. Qb4#
{[%clk 0:03:19.1]} 1-0

[Event "Live Chess"]
[Site "Chess.com"]
[Date "2023.05.21"]
[Round "-"]
[White "wot-not"]
[Black "defenderalist"]
[Result "0-1"]
[WhiteElo "1568"]
[BlackElo "1646"]
[TimeControl "300"]
[EndTime "4:03:20 PDT"]
[Termination "defenderalist won by resignation"]

1. d4 {[%clk 0:04:56.1]} 1... e6 {[%clk 0:04:58.8]} 2. c4 {[%clk 0:04:54.4]}
2... d5 {[%clk 0:04:57.6]} 3. Nc3 {[%clk 0:04:53.7]} 3... Nf6 {[%clk 0:04:55.8]}
4. Bg5 {[%clk 0:04:52.6]} 4... Be7 {[%clk 0:04:54.7]} 5. Nf3 {[%clk 0:04:51.7]}
5... Nbd7 {[%clk 0:04:53.4]} 6. e3 {[%clk 0:04:51.1]} 6... dxc4 {[%clk
0:04:52.5]} 7. Bxc4 {[%clk 0:04:49.4]} 7... c5 {[%clk 0:04:52.4]} 8. O-O {[%clk
0:04:44.6]} 8... O-O {[%clk 0:04:50]} 9. Rc1 {[%clk 0:04:35.7]} 9... cxd4 {[%clk
0:04:49.1]} 10. Nxd4 {[%clk 0:04:33.8]} 10... Nb6 {[%clk 0:04:47.4]} 11. Bd3
{[%clk 0:04:30.6]} 11... h6 {[%clk 0:04:44.4]} 12. Bh4 {[%clk 0:04:29.1]} 12...
Nfd5 {[%clk 0:04:41]} 13. Bxe7 {[%clk 0:04:19.9]} 13... Qxe7 {[%clk 0:04:37.9]}
14. Bb1 {[%clk 0:04:11.9]} 14... Nxc3 {[%clk 0:04:36.8]} 15. Rxc3 {[%clk
0:04:05.8]} 15... Nd5 {[%clk 0:04:36.2]} 16. Qc2 {[%clk 0:03:57.1]} 16... f5
{[%clk 0:04:30.5]} 17. Rc5 {[%clk 0:03:45]} 17... b6 {[%clk 0:04:29.5]} 18. Rc6
{[%clk 0:03:41.5]} 18... Bb7 {[%clk 0:04:27]} 19. Rxe6 {[%clk 0:03:39.6]} 19...
Qg5 {[%clk 0:04:20.8]} 20. Qb3 {[%clk 0:02:34.8]} 20... Kh8 {[%clk 0:04:12.8]}
21. f3 {[%clk 0:02:21.3]} 21... f4 {[%clk 0:03:58]} 22. e4 {[%clk 0:02:14.6]}
22... Ne3 {[%clk 0:03:53.7]} 23. Rf2 {[%clk 0:02:03]} 23... Rac8 {[%clk
0:03:52.4]} 24. Bc2 {[%clk 0:01:28.1]} 24... h5 {[%clk 0:02:54.9]} 25. Rd6
{[%clk 0:01:13.4]} 25... Qe5 {[%clk 0:02:30.9]} 26. Rd7 {[%clk 0:00:57.7]} 26...
Ba6 {[%clk 0:02:17.5]} 27. Nf5 {[%clk 0:00:46.3]} 27... g6 {[%clk 0:01:47.2]}
28. Nxe3 {[%clk 0:00:44.2]} 28... fxe3 {[%clk 0:01:44.3]} 29. Rf1 {[%clk
0:00:31.2]} 29... e2 {[%clk 0:01:37.7]} 30. Re1 {[%clk 0:00:29.9]} 30... Qc5+
{[%clk 0:01:33.6]} 31. Kh1 {[%clk 0:00:27.1]} 31... Qf2 {[%clk 0:01:22.8]} 32.
Qb4 {[%clk 0:00:18.4]} 32... Qf1+ {[%clk 0:01:14.5]} 0-1

[Event "Live Chess"]
[Site "Chess.com"]
[Date "2023.05.21"]
[Round "-"]
[White "Tiltador"]
[Black "Chesscoach_Golichenko"]
[Result "0-1"]
[WhiteElo "880"]
[BlackElo "2618"]
[TimeControl "300"]
[EndTime "4:03:23 PDT"]
[Termination "Chesscoach_Golichenko won by checkmate"]

1. e4 {[%clk 0:04:57.1]} 1... Nf6 {[%clk 0:04:57.9]} 2. f3 {[%clk 0:04:55.4]}
2... e5 {[%clk 0:04:44.6]} 3. d3 {[%clk 0:04:48.3]} 3... d5 {[%clk 0:04:40.4]}
4. g3 {[%clk 0:04:46.7]} 4... Nc6 {[%clk 0:04:37.7]} 5. Bg2 {[%clk 0:04:44.7]}
5... Bc5 {[%clk 0:04:31.7]} 6. Ne2 {[%clk 0:04:33.7]} 6... h5 {[%clk 0:04:25.3]}
7. Nec3 {[%clk 0:04:32.1]} 7... h4 {[%clk 0:04:21.1]} 8. gxh4 {[%clk 0:04:24.3]}
8... Be6 {[%clk 0:03:50.1]} 9. Bg5 {[%clk 0:04:22.6]} 9... Qd7 {[%clk 0:03:44]}
10. a3 {[%clk 0:04:15.9]} 10... O-O-O {[%clk 0:03:38.9]} 11. b4 {[%clk
0:04:13.8]} 11... Bb6 {[%clk 0:03:35.4]} 12. Nxd5 {[%clk 0:04:07.6]} 12... Bxd5
{[%clk 0:03:20.3]} 13. exd5 {[%clk 0:04:04.8]} 13... Nxd5 {[%clk 0:03:18.7]} 14.
Bxd8 {[%clk 0:03:59.2]} 14... Qxd8 {[%clk 0:03:17.5]} 15. Qd2 {[%clk 0:03:48.4]}
15... Qxh4+ {[%clk 0:03:13]} 16. Kd1 {[%clk 0:03:38.9]} 16... Ne3+ {[%clk
0:03:07.1]} 17. Kc1 {[%clk 0:03:33.3]} 17... Nd4 {[%clk 0:03:05.9]} 18. Nc3
{[%clk 0:03:25.5]} 18... Nexc2 {[%clk 0:02:57]} 19. Ra2 {[%clk 0:03:17.6]} 19...
Nb3+ {[%clk 0:02:52.9]} 20. Kxc2 {[%clk 0:03:10.6]} 20... Nxd2 {[%clk
0:02:51.7]} 21. Kxd2 {[%clk 0:03:09.4]} 21... Bd4 {[%clk 0:02:50.5]} 22. Ne4
{[%clk 0:03:02.5]} 22... f5 {[%clk 0:02:45.1]} 23. Nc5 {[%clk 0:02:56]} 23...
Qf2+ {[%clk 0:02:41.2]} 24. Kc1 {[%clk 0:02:45.1]} 24... Qxa2 {[%clk 0:02:38.9]}
25. Rd1 {[%clk 0:02:36.5]} 25... Qb2# {[%clk 0:02:34.1]} 0-1